Body Name,Body,Service Level,Expense Type,Expense Code,Narrative,Date,Transaction Number,Amount,Capital and Revenue,Supplier Name,Supplier ID
South Ribble Borough Council,http://statistics.data.gov.uk/id/local-authority/30UE,Open Spaces,Expenses,4657,To carry out tarmac patch works on the footpath leading to the playground gate at Gregson Lane from the car park.,14/06/2023,0000489647,"3,034.00",Revenue,A & G Landscapes & Groundworks LTD,0
South Ribble Borough Council,http://statistics.data.gov.uk/id/local-authority/30UE,Street Cleansing,Salaries,1121,"NAME REDACTED W/E 19.05.23 - 38.75, @ 15.30ph",07/06/2023,0000489263,592.88,Revenue,ACE PERSONNEL,0
South Ribble Borough Council,http://statistics.data.gov.uk/id/local-authority/30UE,Street Cleansing,Salaries,1121,"NAME REDACTED W/E 19.05.23 - 38.5, @ 15.30ph",07/06/2023,0000489263,589.05,Revenue,ACE PERSONNEL,0
South Ribble Borough Council,http://statistics.data.gov.uk/id/local-authority/30UE,Street Cleansing,Salaries,1121,"NAME REDACTED W/E 19.05.23 - 38.75, @ 15.30ph",07/06/2023,0000489263,589.05,Revenue,ACE PERSONNEL,0
South Ribble Borough Council,http://statistics.data.gov.uk/id/local-authority/30UE,Street Cleansing,Salaries,1121,"NAME REDACTED W/E 26.05.23 - 39 hrs, @ 15.30ph",14/06/2023,0000489470,596.70,Revenue,ACE PERSONNEL,0
South Ribble Borough Council,http://statistics.data.gov.uk/id/local-authority/30UE,Street Cleansing,Salaries,1121,"NAME REDACTED W/E 26.05.23 - 38.25 hrs, @ 15.30ph",14/06/2023,0000489470,585.23,Revenue,ACE PERSONNEL,0
South Ribble Borough Council,http://statistics.data.gov.uk/id/local-authority/30UE,Street Cleansing,Salaries,1121,"NAME REDACTED W/E 26.05.23 - 38.33 hrs, @ 15.30ph",14/06/2023,0000489470,586.45,Revenue,ACE PERSONNEL,0
South Ribble Borough Council,http://statistics.data.gov.uk/id/local-authority/30UE,Street Cleansing,Salaries,1121,"NAME REDACTED W/E 09.06.23 - 38.67 hrs, @ 15.30ph",21/06/2023,0000489919,591.65,Revenue,ACE PERSONNEL,0
South Ribble Borough Council,http://statistics.data.gov.uk/id/local-authority/30UE,Street Cleansing,Salaries,1121,"NAME REDACTED W/E 09.06.23 - 38 hrs, @ 15.30ph",21/06/2023,0000489919,581.40,Revenue,ACE PERSONNEL,0
South Ribble Borough Council,http://statistics.data.gov.uk/id/local-authority/30UE,Street Cleansing,Salaries,1121,"NAME REDACTED W/E 09.06.23 - 38.17 hrs, @ 15.30ph",21/06/2023,0000489919,584.00,Revenue,ACE PERSONNEL,0
South Ribble Borough Council,http://statistics.data.gov.uk/id/local-authority/30UE,Recreation & Sport,Miscellaneous Expenses,4894,"BHM Health checks X 60 60pp - Chorley Council, Total = 3,600 no VAT",28/06/2023,0000490119,"3,600.00",Revenue,ACTIVE LANCASHIRE,0
South Ribble Borough Council,http://statistics.data.gov.uk/id/local-authority/30UE,Surplus or Deficit on Trading,Premises Repair & Mtne,2020,To re-pipe waste pipe for the sinks that are used for rinsing hair (these keep blocking up so we will upgrade the diameter of pip,14/06/2023,0000489676,660.00,Revenue,Ainscoe Plumbing & Heating Ltd,0
South Ribble Borough Council,http://statistics.data.gov.uk/id/local-authority/30UE,Capital,Capital Other Land & Bldgs,C230,Penwortham Leisure Centre Decarbonisation Works:,21/06/2023,0000489223,"194,373.63",Revenue,Alliance Leisure Services Limited,0
South Ribble Borough Council,http://statistics.data.gov.uk/id/local-authority/30UE,Capital,Capital Other Land & Bldgs,C230,"for DNO Connections and M&E Works in line with the Decarbonisation Scheme, across the leisure centres and civic centre please., ,",21/06/2023,0000489224,"155,769.33",Revenue,Alliance Leisure Services Limited,0
South Ribble Borough Council,http://statistics.data.gov.uk/id/local-authority/30UE,Capital,Capital Other Land & Bldgs,C230,"final M&E Works in line with the Decarbonisation Scheme, across the leisure centre and civic centre , The Civic Centre Decarbonis",14/06/2023,0000489225,"5,833.32",Revenue,Alliance Leisure Services Limited,0
South Ribble Borough Council,http://statistics.data.gov.uk/id/local-authority/30UE,Capital,Capital Other Land & Bldgs,C230,"for DNO Connections and M&E Works in line with the Decarbonisation Scheme, across the leisure centres and civic centre please., ,",21/06/2023,0000489226,"147,437.83",Revenue,Alliance Leisure Services Limited,0
South Ribble Borough Council,http://statistics.data.gov.uk/id/local-authority/30UE,Capital,Capital Other Land & Bldgs,C230,South Ribble Tennis Centre Decarbonisation Works:,21/06/2023,0000489227,"53,432.18",Revenue,Alliance Leisure Services Limited,0
South Ribble Borough Council,http://statistics.data.gov.uk/id/local-authority/30UE,Local Tax Collection,Miscellaneous Expenses,4811,post office,14/06/2023,0000489528,540.72,Revenue,ALLPAY LTD,0
South Ribble Borough Council,http://statistics.data.gov.uk/id/local-authority/30UE,Central Support Services,Salaries,1121,Agency Staff w/e 04/06/2023 - Week 9,14/06/2023,0000489702,"9,860.05",Revenue,ALS Managed Services Ltd,0
South Ribble Borough Council,http://statistics.data.gov.uk/id/local-authority/30UE,Central Support Services,Salaries,1121,Agency Staff w/e 28/05/2023,21/06/2023,0000489853,"7,305.84",Revenue,ALS Managed Services Ltd,0
South Ribble Borough Council,http://statistics.data.gov.uk/id/local-authority/30UE,Central Support Services,Salaries,1121,Agency Staff w/e 21/05/2023,21/06/2023,0000489863,"8,436.13",Revenue,ALS Managed Services Ltd,0
South Ribble Borough Council,http://statistics.data.gov.uk/id/local-authority/30UE,Central Support Services,Salaries,1121,Agency Staff w/e 11/06/2023 - Week 10,28/06/2023,0000490045,"7,757.27",Revenue,ALS Managed Services Ltd,0
South Ribble Borough Council,http://statistics.data.gov.uk/id/local-authority/30UE,Central Support Services,Salaries,1121,Agency Staff w/e 18/06/2023 - Week 11,28/06/2023,0000490069,"6,819.45",Revenue,ALS Managed Services Ltd,0
South Ribble Borough Council,http://statistics.data.gov.uk/id/local-authority/30UE,Recreation & Sport,Premises Repair & Mtne,2021,Additional External Roofing Works at Leyland Leisure Centre as per NAME REDACTED request,21/06/2023,0000489909,"8,300.00",Revenue,AMS Cladding,0
South Ribble Borough Council,http://statistics.data.gov.uk/id/local-authority/30UE,Capital,Deferrd Chgs-Improvemnt Grants,C570,DFG WORK FOR ADAPTATION FOR LEVEL ACCESS SHOWER AT ADDRESS REDACTED AS PER SRBC PLANS AND QUOTE,07/06/2023,0000489287,"6,226.25",Revenue,APG DOMESTIC SERVICES,0
South Ribble Borough Council,http://statistics.data.gov.uk/id/local-authority/30UE,Open Spaces,Expenses,4657,"WSI for Worden Park, Leyland",07/06/2023,0000489483,500.00,Revenue,Archaeological Research Services Ltd,0
South Ribble Borough Council,http://statistics.data.gov.uk/id/local-authority/30UE,Economic Development,Salaries,1131,ADDRESS REDACTED,28/06/2023,0000489999,"4,414.20",Revenue,Arnold Clark Finance Ltd (Lease Cars),0
South Ribble Borough Council,http://statistics.data.gov.uk/id/local-authority/30UE,Elections,Miscellaneous Expenses,4421,"AEA Online Polling Station Training, Attendees: Polling Station Inspectors, Presiding Officers and Poll Clerks (approx. 190 atten",14/06/2023,0000489418,"2,013.00",Revenue,ASSOC OF ELECTORAL ADMINISTRATORS LTD,0
South Ribble Borough Council,http://statistics.data.gov.uk/id/local-authority/30UE,Capital,Deferrd Chgs-Improvemnt Grants,C570,"DFG WORK FOR ADAPTATION FOR LEVEL ACCESS SHOWER AT ADDRESS REDACTED AS PER SRBC PLANS AND QUOTE SUPPLIED OF 6955.00, T",07/06/2023,0000489288,"7,745.00",Revenue,Bambers Remedial Contractors Ltd,0
South Ribble Borough Council,http://statistics.data.gov.uk/id/local-authority/30UE,Capital,Deferrd Chgs-Improvemnt Grants,C570,DISREPAIR GRANT FOR WORK AT ADDRESS REDACTED AS PER SRBC PLANS AND QUOTE SUPPLIED OF 29925.00 PLUS VAT =35910,14/06/2023,0000489313,"50,050.00",Revenue,Bambers Remedial Contractors Ltd,0
South Ribble Borough Council,http://statistics.data.gov.uk/id/local-authority/30UE,Capital,Deferrd Chgs-Improvemnt Grants,C570,DFG WORK FOR ADAPTATION FOR LEVEL ACCESS SHOWER AT ADDRESS REDACTED AS PER SRBC PLANS AND QUOTE SUPPLIED OF 5892.00,28/06/2023,0000490103,"6,090.17",Revenue,Bartons of Duke Street Ltd,0
South Ribble Borough Council,http://statistics.data.gov.uk/id/local-authority/30UE,Capital,Capital Other Land & Bldgs,C231,Electrical Works at Vernon Carus Cricket Club,21/06/2023,0000489851,"4,030.64",Revenue,BELEC ELECTRICAL LTD,0
South Ribble Borough Council,http://statistics.data.gov.uk/id/local-authority/30UE,Surplus or Deficit on Trading,Premises Repair & Mtne,2020,Supply and fit two extractor fans and 2KW heater with frost stat. At Coles Cobblers and Key cutting ADDRESS REDACTED,21/06/2023,0000489852,765.00,Revenue,BELEC ELECTRICAL LTD,0
South Ribble Borough Council,http://statistics.data.gov.uk/id/local-authority/30UE,Street Cleansing,Contract Hire & Operating Leas,3212,Hire of Ford transit 350 L2 single cab tipper one stop alloy body 2 ltr 130 ps euro 6 VIN REDACTED for 3 months from 04.04.2023,07/06/2023,0000489309,840.00,Revenue,Blackburn Van Hire & Sales Limited,0
South Ribble Borough Council,http://statistics.data.gov.uk/id/local-authority/30UE,Street Cleansing,Contract Hire & Operating Leas,3212,Hire of Ford transit 350 l2 single cab tipper one stop alloy body 2 ltr 130 ps euro 6 VIN REDACTED for 3 months from 04.04.23,07/06/2023,0000489310,840.00,Revenue,Blackburn Van Hire & Sales Limited,0
South Ribble Borough Council,http://statistics.data.gov.uk/id/local-authority/30UE,Central Support Services,Furniture- Equip & Materials,4010,2 x Oxygen W Dissolved Acetylene Acetylene 50L Argoshield Light W Non DD Account January 2022,14/06/2023,0000489464,529.75,Revenue,BOC GASES,0
South Ribble Borough Council,http://statistics.data.gov.uk/id/local-authority/30UE,Street Cleansing,Furniture- Equip & Materials,4040,"25 x Black Broxap Derby Slimline Litter Bin, with ashtray.",21/06/2023,0000489835,"7,250.00",Revenue,BROXAP LTD,0
South Ribble Borough Council,http://statistics.data.gov.uk/id/local-authority/30UE,Capital,Capital Vehicles,C440,17 tonne chassis based mechanical road sweeper,21/06/2023,0000489034,"161,276.00",Revenue,Bucher Municipal Ltd,0
South Ribble Borough Council,http://statistics.data.gov.uk/id/local-authority/30UE,Economic Development,Services,4510,"Building Stronger Communities. For the appearance of a speaker (NAME REDACTED) at an event, where they will be speaking and answe",14/06/2023,0000489778,550.00,Revenue,Building Stronger Communities,0
South Ribble Borough Council,http://statistics.data.gov.uk/id/local-authority/30UE,Central Support Services,Salaries,1121,Consultant planning officer NAME REDACTED,21/06/2023,0000489261,"1,840.00",Revenue,CAPITA PROPERTY AND INFRASTRUCTURE LTD,0
South Ribble Borough Council,http://statistics.data.gov.uk/id/local-authority/30UE,Central Support Services,Communications & Comuting,4243,"PAY0383SOU-A1 - Civicapay - Implementation of Hosted Distribution - Payable on sign off in UAT. 8,600.00 , PAY0383SOU-A1 - Civica",07/06/2023,0000489515,"10,200.00",Revenue,CIVICA UK LTD,0
South Ribble Borough Council,http://statistics.data.gov.uk/id/local-authority/30UE,Homelessness,Contractors Chges,5311,"Claremont Hotel statutory duty homelessness placements from 22.05.23 to 04.06.23, , For:, , NAME REDACTED - 65 per night - 14 nights - 910",07/06/2023,0000489665,"2,968.00",Revenue,CLAREMONT HOTEL,0
South Ribble Borough Council,http://statistics.data.gov.uk/id/local-authority/30UE,Homelessness,Contractors Chges,5311,Homelessness placements (all Section 188 duty placements) at the Claremont Hotel in Preston between 05.06.23 and 18.06.23. We now,28/06/2023,0000490078,"2,968.00",Revenue,CLAREMONT HOTEL,0
South Ribble Borough Council,http://statistics.data.gov.uk/id/local-authority/30UE,Open Spaces,Expenses,4657,"6no. 20T loads of recycled 6F2 delivered to Ryden Avenue, Leyland, PR25 4YJ",07/06/2023,0000488170,570.00,Revenue,CLIVE HURT (PLANT HIRE) LTD,0
South Ribble Borough Council,http://statistics.data.gov.uk/id/local-authority/30UE,Central Support Services,Miscellaneous Expenses,4851,"Purchase Blue 240 wheelie bins 180 @ 20.25 3645.0, Grey 240 wheelie bins 180 @ 19.40 3492.0, Brown 240 wheelie bins 180 @ 19.40",21/06/2023,0000489986,"10,629.00",Revenue,Contenur UK Ltd,0
South Ribble Borough Council,http://statistics.data.gov.uk/id/local-authority/30UE,Central Support Services,Printing- Stat & Office Expens,4136,"em Description Quantity, 12 fibre - OS2 UN - Eca (CST/LSZH - black) 110, LABOUR, Item Description Quantity, 2 man Engineering Tea",07/06/2023,0000489531,"1,073.86",Revenue,Core Integrated Solutions,0
South Ribble Borough Council,http://statistics.data.gov.uk/id/local-authority/30UE,Central Support Services,Miscellaneous Expenses,4851,"Serve and Evict from Penwortham Holme Playing Fields, Higher Penwortham PR19UD",07/06/2023,0000489459,"5,150.00",Revenue,Court Enforcement Specialists Ltd,0
South Ribble Borough Council,http://statistics.data.gov.uk/id/local-authority/30UE,Local Tax Collection,Communications & Comuting,4291,POSTAGE FOR APRIL TO MAY 2023,28/06/2023,0000489988,"1,277.64",Revenue,CRITIQOM,0
South Ribble Borough Council,http://statistics.data.gov.uk/id/local-authority/30UE,Local Tax Collection,Communications & Comuting,4291,POSTAGE FOR JUNE 2023,21/06/2023,0000489989,"1,105.13",Revenue,CRITIQOM,0
South Ribble Borough Council,http://statistics.data.gov.uk/id/local-authority/30UE,Local Tax Collection,Communications & Comuting,4291,POSTAGE FOR JUNE 2023,21/06/2023,0000489994,"1,501.56",Revenue,CRITIQOM,0
South Ribble Borough Council,http://statistics.data.gov.uk/id/local-authority/30UE,Central Support Services,Salaries,1121,South Ribble Customer Services Housing Temp,07/06/2023,0000488652,500.40,Revenue,Daniel Adams Recruitment Ltd,0
South Ribble Borough Council,http://statistics.data.gov.uk/id/local-authority/30UE,Central Support Services,Salaries,1121,South Ribble Customer Services Housing Temp,07/06/2023,0000488824,553.09,Revenue,Daniel Adams Recruitment Ltd,0
South Ribble Borough Council,http://statistics.data.gov.uk/id/local-authority/30UE,Central Support Services,Salaries,1121,South Ribble Customer Services Housing Temp Cover,14/06/2023,0000489794,500.40,Revenue,Daniel Adams Recruitment Ltd,0
South Ribble Borough Council,http://statistics.data.gov.uk/id/local-authority/30UE,Central Support Services,Services,4570,Repair to NSF Corner VIN REDACTED,14/06/2023,0000489695,"1,767.60",Revenue,DAVAND LTD (trading as Longton Coachcraft),0
South Ribble Borough Council,http://statistics.data.gov.uk/id/local-authority/30UE,Homelessness,Grants & Subscriptions,4730,NAME REDACTED. is currently staying at the ADDRESS REDACTED. We need to pay for the nex,14/06/2023,0000489691,525.00,Revenue,David Iddon & Corrina Kellett,0
South Ribble Borough Council,http://statistics.data.gov.uk/id/local-authority/30UE,Central Support Services,Furniture- Equip & Materials,4040,"Ad blue sender unit, VIN REDACTED",07/06/2023,0000489094,707.86,Revenue,DENNIS EAGLE LTD,0
South Ribble Borough Council,http://statistics.data.gov.uk/id/local-authority/30UE,Central Support Services,Furniture- Equip & Materials,4040,"1 x filter kit, 2x seatbelt buckles, 1x ball joint, , VIN REDACTED",07/06/2023,0000489274,790.73,Revenue,DENNIS EAGLE LTD,0
South Ribble Borough Council,http://statistics.data.gov.uk/id/local-authority/30UE,Central Support Services,Furniture- Equip & Materials,4040,Chassis Service Kit & Hydraulic Service Kit VIN REDACTED,14/06/2023,0000489430,710.51,Revenue,DENNIS EAGLE LTD,0
South Ribble Borough Council,http://statistics.data.gov.uk/id/local-authority/30UE,Central Support Services,Furniture- Equip & Materials,4040,Hopper Floor V021 VIN REDACTED,14/06/2023,0000489433,"1,519.10",Revenue,DENNIS EAGLE LTD,0
South Ribble Borough Council,http://statistics.data.gov.uk/id/local-authority/30UE,Central Support Services,Furniture- Equip & Materials,4040,"16x Side blocks, VIN REDACTED",21/06/2023,0000489856,837.83,Revenue,DENNIS EAGLE LTD,0
South Ribble Borough Council,http://statistics.data.gov.uk/id/local-authority/30UE,Central Support Services,Premises Repair & Mtne,2020,replace the existing outside access device with knobs due to wear and tear and the supply of 10x new keys. We will reuse the exis,21/06/2023,0000489924,756.00,Revenue,DES Electrical Services Ltd,0
South Ribble Borough Council,http://statistics.data.gov.uk/id/local-authority/30UE,Central Support Services,Premises Repair & Mtne,2021,"Our Ref: 8682 as per NAME REDACTED equest , , Re: Comm�s Room Fire Door, Moss Side Depot, Bison Place, Moss Side Ind Est, Leyland, PR26 7",21/06/2023,0000489925,549.00,Revenue,DES Electrical Services Ltd,0
South Ribble Borough Council,http://statistics.data.gov.uk/id/local-authority/30UE,Surplus or Deficit on Trading,Energy Costs,2303,18/5 to 31/5/23,21/06/2023,0000489881,557.14,Revenue,E.ON,0
South Ribble Borough Council,http://statistics.data.gov.uk/id/local-authority/30UE,Open Spaces,Expenses,4657,Seats and tables as per Quote ref Q6750 revised,21/06/2023,0000489883,927.00,Revenue,EARTH ANCHORS LTD,0
South Ribble Borough Council,http://statistics.data.gov.uk/id/local-authority/30UE,Central Support Services,Communications & Comuting,4248,Investigation service,21/06/2023,0000489908,"4,780.07",Revenue,EXPERIAN LTD,0
South Ribble Borough Council,http://statistics.data.gov.uk/id/local-authority/30UE,Economic Development,Services,4575,Catering for acts for MITP event,14/06/2023,0000489732,"1,200.00",Revenue,Folly Coffee House,0
South Ribble Borough Council,http://statistics.data.gov.uk/id/local-authority/30UE,Central Support Services,Services,4570,Helath Check Operator Licence Audit as per your quotation QUO-34804-KIM6B5,07/06/2023,0000488171,"1,386.00",Revenue,FREIGHT TRANSPORT ASSOCIATION,0
South Ribble Borough Council,http://statistics.data.gov.uk/id/local-authority/30UE,Capital,Deferrd Chgs-Improvemnt Grants,C570,DFG WORK FOR ADAPTATION FOR LEVEL ACCESS SHOWER AT ADDRESS REDACTED PER SRBC PLANS AND QUOTE SUPPLIED OF ,14/06/2023,0000489804,"5,950.00",Revenue,GOS Heating Ltd,0
South Ribble Borough Council,http://statistics.data.gov.uk/id/local-authority/30UE,Capital,Capital Other Land & Bldgs,C230,"Supply and install new footpaths, dementia garden and planting, Strawberry Valley Park, Leyland",14/06/2023,0000489703,"15,953.91",Revenue,Ground Inc Ltd,0
South Ribble Borough Council,http://statistics.data.gov.uk/id/local-authority/30UE,Short Term Creditors,Balance Sheet,0140,,07/06/2023,0000488978,700.80,Revenue,HM REVENUE & CUSTOMS,0
South Ribble Borough Council,http://statistics.data.gov.uk/id/local-authority/30UE,Recreation & Sport,Miscellaneous Expenses,4894,"South Ribble School Games - Hutton Church of England Grammar School, For delivery of the following schedule:, Primary�Schools Rug",14/06/2023,0000489834,"2,980.60",Revenue,HUTTON GRAMMAR SCHOOL,0
South Ribble Borough Council,http://statistics.data.gov.uk/id/local-authority/30UE,Capital,Capital Other Land & Bldgs,C259,Project Management Services - Jubilee Gardens (RIBA 4) - As per additional scope v3,07/06/2023,0000489497,"4,000.00",Revenue,Identity Consult Ltd,0
South Ribble Borough Council,http://statistics.data.gov.uk/id/local-authority/30UE,Central Support Services,Training Expenses,1402,Upskill on Enforcement Training for NAMES REDACTED- 1440.00 per person,07/06/2023,0000489093,"5,760.00",Revenue,KEEP BRITAIN TIDY,0
South Ribble Borough Council,http://statistics.data.gov.uk/id/local-authority/30UE,Open Spaces,Furniture- Equip & Materials,4046,1 off Coronation InstaPlant Carpet Bed as per Quotation 60211 from 19.01.23,21/06/2023,0000489928,"2,785.00",Revenue,KERNOCK PARK PLANTS,0
South Ribble Borough Council,http://statistics.data.gov.uk/id/local-authority/30UE,Surplus or Deficit on Trading,Energy Costs,2303,Lower VAT,28/06/2023,0000489541,535.19,Revenue,Kinex,0
South Ribble Borough Council,http://statistics.data.gov.uk/id/local-authority/30UE,Surplus or Deficit on Trading,Energy Costs,2303,Standard VAT,28/06/2023,0000489545,914.00,Revenue,Kinex,0
South Ribble Borough Council,http://statistics.data.gov.uk/id/local-authority/30UE,Surplus or Deficit on Trading,Energy Costs,2303,Standard VAT,28/06/2023,0000489553,514.00,Revenue,Kinex,0
South Ribble Borough Council,http://statistics.data.gov.uk/id/local-authority/30UE,Surplus or Deficit on Trading,Energy Costs,2303,Lower VAT,28/06/2023,0000489554,507.60,Revenue,Kinex,0
South Ribble Borough Council,http://statistics.data.gov.uk/id/local-authority/30UE,Community Development,Miscellaneous Expenses,4851,"invoice relates to design fees for feasibility of a Zebra crossing on Stanifield Lane in the vicinity of Farington Park , Cost - ",07/06/2023,0000489509,"7,528.00",Revenue,LANCASHIRE COUNTY COUNCIL,0
South Ribble Borough Council,http://statistics.data.gov.uk/id/local-authority/30UE,Central Support Services,Furniture- Equip & Materials,4040,205 ltr Drum Symex Spectrum 5/30 Engine Oil,07/06/2023,0000489237,612.95,Revenue,LANCASHIRE OILS LTD,0
South Ribble Borough Council,http://statistics.data.gov.uk/id/local-authority/30UE,Central Support Services,Furniture- Equip & Materials,4040,1100 litres ATF @ 1.99,07/06/2023,0000489237,"2,189.00",Revenue,LANCASHIRE OILS LTD,0
South Ribble Borough Council,http://statistics.data.gov.uk/id/local-authority/30UE,Central Support Services,Furniture- Equip & Materials,4040,4000ltrs Adblue at 58ppl,07/06/2023,0000489321,"2,320.00",Revenue,LANCASHIRE OILS LTD,0
South Ribble Borough Council,http://statistics.data.gov.uk/id/local-authority/30UE,Central Support Services,Services,4541,3 x Interns carrying out 140 hours of work each.,28/06/2023,0000489929,"2,400.00",Revenue,Lancaster University,0
South Ribble Borough Council,http://statistics.data.gov.uk/id/local-authority/30UE,Parking Services,Services,4570,"Maintenance and Energy Costs for South Ribble Car Parks, Amenity Lighting and Public Buildings 2021-22",14/06/2023,0000488541,"11,484.00",Revenue,LANCS COUNTY COUNCIL,0
South Ribble Borough Council,http://statistics.data.gov.uk/id/local-authority/30UE,Parking Services,Services,4570,"Maintenance and Energy Costs for South Ribble Car Parks, Amenity Lighting and Public Buildings 2022-23",14/06/2023,0000488541,"17,290.85",Revenue,LANCS COUNTY COUNCIL,0
South Ribble Borough Council,http://statistics.data.gov.uk/id/local-authority/30UE,Open Spaces,Services,4570,replacement of street lighting columns at Longton Library,07/06/2023,0000488679,"6,450.00",Revenue,LANCS COUNTY COUNCIL,0
South Ribble Borough Council,http://statistics.data.gov.uk/id/local-authority/30UE,Central Support Services,Furniture- Equip & Materials,4040,"4 pairs Brake Pads- bin No-541, SC",14/06/2023,0000489571,700.00,Revenue,LANCS DAF,0
South Ribble Borough Council,http://statistics.data.gov.uk/id/local-authority/30UE,Central Support Services,Furniture- Equip & Materials,4040,"Gear selector, Brake Pads, VIN REDACTED",21/06/2023,0000489930,790.83,Revenue,LANCS DAF,0
South Ribble Borough Council,http://statistics.data.gov.uk/id/local-authority/30UE,Central Support Services,Furniture- Equip & Materials,4040,"Sping break chamber, VIN REDACTED",21/06/2023,0000489931,601.58,Revenue,LANCS DAF,0
South Ribble Borough Council,http://statistics.data.gov.uk/id/local-authority/30UE,Central Support Services,Grants & Subscriptions,4721,PSTax Membership Subscription 2023/24,07/06/2023,0000489455,"2,847.50",Revenue,"LAVAT CONSULTING LTD, T/A PSTAX",0
South Ribble Borough Council,http://statistics.data.gov.uk/id/local-authority/30UE,Open Spaces,Furniture- Equip & Materials,4040,"15x Open Water signs @ 61.18 each at the , size of 600 x 450mm",14/06/2023,0000489679,927.70,Revenue,LCC SIGN SHOP,0
South Ribble Borough Council,http://statistics.data.gov.uk/id/local-authority/30UE,Open Spaces,Furniture- Equip & Materials,4040,8x 4m posts x 76mm @ 77.94 each,14/06/2023,0000489679,623.54,Revenue,LCC SIGN SHOP,0
South Ribble Borough Council,http://statistics.data.gov.uk/id/local-authority/30UE,Capital,Capital Other Land & Bldgs,C230,Leisure Local Funds - free access to hockey training and equipment for the community to enjoy,21/06/2023,0000489579,"9,970.00",Revenue,Leyland and Chorley Hockey Club,0
South Ribble Borough Council,http://statistics.data.gov.uk/id/local-authority/30UE,Capital,Capital Other Land & Bldgs,C230,Payment 2 - Leisure Local Improvement Project,21/06/2023,0000489577,"100,000.00",Revenue,Leyland Fox Lane and Sports and Social Club,0
South Ribble Borough Council,http://statistics.data.gov.uk/id/local-authority/30UE,Recreation & Sport,Premises Repair & Mtne,2020,"Replacement Ceilings across Leisure Sites for Decarb Works. , Requested by NAME REDACTED",21/06/2023,0000489514,"1,792.60",Revenue,Lifetime Ceilings Ltd,0
South Ribble Borough Council,http://statistics.data.gov.uk/id/local-authority/30UE,Capital,Deferrd Chgs-Improvemnt Grants,C570,DFG WORKS FOR LEVEL ACCESS BATHROOM AT ADDRESS REDACTED NEW PROGRESS PROPERTY SO 50% OF TOTAL QUOTE TO BE PA,07/06/2023,0000489417,"4,198.48",Revenue,MAHONEY CONTRACTORS LTD,0
South Ribble Borough Council,http://statistics.data.gov.uk/id/local-authority/30UE,Capital,Deferrd Chgs-Improvemnt Grants,C570,DFG WORKS FOR LEVEL ACCESS BATHROOM AT ADDRESS REDACTED NEW PROGRESS PROPERTY SO 50% OF TOTAL QUOTE TO BE PA,14/06/2023,0000489805,"3,595.84",Revenue,MAHONEY CONTRACTORS LTD,0
South Ribble Borough Council,http://statistics.data.gov.uk/id/local-authority/30UE,Capital,Deferrd Chgs-Improvemnt Grants,C570,DFG WORKS FOR LEVEL ACCESS BATHROOM AT ADDRESS REDACTED NEW PROGRESS PROPERTY SO 50% OF TOTAL QUOTE TO BE PA,14/06/2023,0000489806,"3,335.54",Revenue,MAHONEY CONTRACTORS LTD,0
South Ribble Borough Council,http://statistics.data.gov.uk/id/local-authority/30UE,Capital,Deferrd Chgs-Improvemnt Grants,C570,DFG WORKS FOR LEVEL ACCESS BATHROOM AT ADDRESS REDACTED NEW PROGRESS PROPERTY SO 50% OF TOTAL QUOTE TO BE PA,28/06/2023,0000490178,"3,583.86",Revenue,MAHONEY CONTRACTORS LTD,0
South Ribble Borough Council,http://statistics.data.gov.uk/id/local-authority/30UE,Open Spaces,Services,4570,Two loads to be removed from 2 bays in the Yard,21/06/2023,0000489932,520.00,Revenue,Michael Alty,0
South Ribble Borough Council,http://statistics.data.gov.uk/id/local-authority/30UE,Recreation & Sport,Premises Repair & Mtne,2020,"Sales Leyland leisure Centre Remove Cladding Replace any Rotten Timbers Reclad with T&G as per NAME REDACTED request , Paint Timber, , 3",21/06/2023,0000489871,"3,500.00",Revenue,Mick Bamber,0
South Ribble Borough Council,http://statistics.data.gov.uk/id/local-authority/30UE,Economic Development,Grants & Subscriptions,4711,BEE Scheme Perfect Recruitment,14/06/2023,0000489815,"2,000.00",Revenue,Miss Lisa Brady,0
South Ribble Borough Council,http://statistics.data.gov.uk/id/local-authority/30UE,Central Support Services,Training Expenses,1402,12 delegates for Pasteurisation theory training,07/06/2023,0000488936,"2,702.36",Revenue,Moody Direct Ltd,0
South Ribble Borough Council,http://statistics.data.gov.uk/id/local-authority/30UE,Central Support Services,Services,4570,Attend site to install customers own Autotech AS 7261 lawnmower lift,14/06/2023,0000489289,550.00,Revenue,MRB Workshop Services Ltd,0
South Ribble Borough Council,http://statistics.data.gov.uk/id/local-authority/30UE,Central Support Services,Furniture- Equip & Materials,4040,"4 x Cylinder clamps G046, 6 x Start pins G025",07/06/2023,0000489239,"1,087.01",Revenue,MRD Parts LTD,0
South Ribble Borough Council,http://statistics.data.gov.uk/id/local-authority/30UE,Central Support Services,Furniture- Equip & Materials,4040,"2x under run sensors BinGO24, 5x Springs Bin GW01, 8x Bin clamp pins Bin GO47, 1x bin catcher ram Bin GO43",14/06/2023,0000489279,"1,542.91",Revenue,MRD Parts LTD,0
South Ribble Borough Council,http://statistics.data.gov.uk/id/local-authority/30UE,Central Support Services,Furniture- Equip & Materials,4040,6x Cylinder Lip clamp GO64,21/06/2023,0000489827,"1,271.27",Revenue,MRD Parts LTD,0
South Ribble Borough Council,http://statistics.data.gov.uk/id/local-authority/30UE,Central Support Services,Furniture- Equip & Materials,4040,2x Distance Sensor GO24,21/06/2023,0000489827,707.73,Revenue,MRD Parts LTD,0
South Ribble Borough Council,http://statistics.data.gov.uk/id/local-authority/30UE,Central Support Services,Furniture- Equip & Materials,4040,6 safety barrier G015,21/06/2023,0000489833,900.53,Revenue,MRD Parts LTD,0
South Ribble Borough Council,http://statistics.data.gov.uk/id/local-authority/30UE,Central Support Services,Furniture- Equip & Materials,4040,"Hopper Floor, VIN REDACTED, jfc-20283",28/06/2023,0000490004,"1,213.35",Revenue,MRD Parts LTD,0
South Ribble Borough Council,http://statistics.data.gov.uk/id/local-authority/30UE,Capital,Deferrd Chgs-Improvemnt Grants,C570,"EMPTY HOMES GRANT AT ADDRESS REDACTED AS PER SRBC PLANS AND LOWEST QUOTE, SUPPLIED OF 8481.60-2 BED PROPERTY, TOTAL ",14/06/2023,0000489793,"7,068.00",Revenue,MSG Building and Construction Ltd,0
South Ribble Borough Council,http://statistics.data.gov.uk/id/local-authority/30UE,Homelessness,Contractors Chges,5311,"FT	twin	 	01-May	01-Jun	31	2145, CE	family		01-May	01-Jun	31	2125, TF	family		01-May	01-Jun	31	2125, LS twin	 	01-May	01-Jun	31	2",14/06/2023,0000489664,"22,986.75",Revenue,National Hotel Rooms Ltd t/a Purple Roomz,0
South Ribble Borough Council,http://statistics.data.gov.uk/id/local-authority/30UE,Development Control,Miscellaneous Expenses,4841,Press notices for planning applications April 23 to March 24,21/06/2023,0000489311,"1,040.04",Revenue,National World Publishing Limited,0
South Ribble Borough Council,http://statistics.data.gov.uk/id/local-authority/30UE,Development Control,Miscellaneous Expenses,4841,Press notices for planning applications April 23 to March 24,28/06/2023,0000489884,866.70,Revenue,National World Publishing Limited,0
South Ribble Borough Council,http://statistics.data.gov.uk/id/local-authority/30UE,Development Control,Miscellaneous Expenses,4841,Press notices for planning applications April 23 to March 24,28/06/2023,0000489933,953.37,Revenue,National World Publishing Limited,0
South Ribble Borough Council,http://statistics.data.gov.uk/id/local-authority/30UE,Development Control,Miscellaneous Expenses,4841,Press notices for planning applications April 23 to March 24,28/06/2023,0000489934,"1,040.04",Revenue,National World Publishing Limited,0
South Ribble Borough Council,http://statistics.data.gov.uk/id/local-authority/30UE,Economic Development,Furniture- Equip & Materials,4010,"Backstage marquee`s , Tables/ Chairs , Dressing Room",14/06/2023,0000489436,"7,497.50",Revenue,NATIONWIDE MARQUEE HIRE LTD,0
South Ribble Borough Council,http://statistics.data.gov.uk/id/local-authority/30UE,Capital,Deferrd Chgs-Improvemnt Grants,C570,DFG WORKS FUNDED BY LANCASHIRE COUNTY COUNCIL AT ADDRESS REDACTED- TOTAL FUNDED BY LCC 40000.00,21/06/2023,0000489935,"1,000.00",Revenue,Neil Maitland,0
South Ribble Borough Council,http://statistics.data.gov.uk/id/local-authority/30UE,Regulatory Services,Services,4520,"500 x CP-TX Clear Plate (240x 176), , 250 x IP-3-C - Mogo Internal Plate - A4 Tear out Plate - Hackney carriage - with hologram ,",07/06/2023,0000486848,"6,589.00",Revenue,NEWAUTO LTD T/A MOGO (UK),0
South Ribble Borough Council,http://statistics.data.gov.uk/id/local-authority/30UE,Democratic Represent and  Mgnt,Furniture- Equip & Materials,4010,"Code: HC270, Bolero Round PE Centre Folding Table White 6ft @ 152.99 x 13",14/06/2023,0000489324,"1,988.87",Revenue,NISBETS,0
South Ribble Borough Council,http://statistics.data.gov.uk/id/local-authority/30UE,Regulatory Services,Services,4520,Safeguarding training and CSE and CCE awareness Training,21/06/2023,0000489186,"1,000.00",Revenue,No Whispers CIC,0
South Ribble Borough Council,http://statistics.data.gov.uk/id/local-authority/30UE,Central Support Services,Furniture- Equip & Materials,4040,SCARAB MINI SWEEPER BRUSHES - POLY/WIRE MIX-MATHIEU-0120089,07/06/2023,0000489378,"2,007.04",Revenue,NORTHERN MUNICIPAL SPARES LTD,0
South Ribble Borough Council,http://statistics.data.gov.uk/id/local-authority/30UE,Economic Development,Energy Costs,2303,1/3 to 31/3/23,14/06/2023,0000489655,"2,053.95",Revenue,NPOWER A0007226045 - Leyland Market,0
South Ribble Borough Council,http://statistics.data.gov.uk/id/local-authority/30UE,Economic Development,Energy Costs,2303,1/2 to 28/2/23,14/06/2023,0000489656,"1,796.37",Revenue,NPOWER A0007226045 - Leyland Market,0
South Ribble Borough Council,http://statistics.data.gov.uk/id/local-authority/30UE,Economic Development,Energy Costs,2303,1/4 to 30/4/23,14/06/2023,0000489662,"1,995.23",Revenue,NPOWER A0007226045 - Leyland Market,0
South Ribble Borough Council,http://statistics.data.gov.uk/id/local-authority/30UE,Parking Services,Services,4514,"Variable Fee Car Park Enforcement , MAY 2023 - Variable Recharge Items",28/06/2023,0000490124,"2,033.20",Revenue,NSL LTD,0
South Ribble Borough Council,http://statistics.data.gov.uk/id/local-authority/30UE,Capital,Capital Other Land & Bldgs,C230,"Leyland Town Deal - Openreach Apparatus Lines Disconnection, Quin St",14/06/2023,0000489708,"1,723.84",Revenue,OPENREACH (BT GROUP BUSINESS),0
South Ribble Borough Council,http://statistics.data.gov.uk/id/local-authority/30UE,Open Spaces,Furniture- Equip & Materials,4040,50 bags x R41,21/06/2023,0000489905,"4,168.00",Revenue,Origin Amenity Solutions,0
South Ribble Borough Council,http://statistics.data.gov.uk/id/local-authority/30UE,Recreation & Sport,Furniture- Equip & Materials,4040,"Grant payment for Defibrillator for Worden parkrun, Total = 561.67 ex VAT",14/06/2023,0000489220,561.67,Revenue,PARKRUN LTD,0
South Ribble Borough Council,http://statistics.data.gov.uk/id/local-authority/30UE,Capital,Capital Other Land & Bldgs,C230,"Leyland Town Deal - Provision of site clearance and waste disposal services. , Requested by NAME REDACTED",28/06/2023,0000488943,"15,000.00",Revenue,PDM Industries Ltd,0
South Ribble Borough Council,http://statistics.data.gov.uk/id/local-authority/30UE,Surplus or Deficit on Trading,Premises Repair & Mtne,2020,"Quote Number QU-0843 Reference North Lodge-Worden Park as per NAME REDACTED request , Building works- Scope of works, Remove tiles and st",07/06/2023,0000489475,"6,428.60",Revenue,PDP PROPERTY SERVICES LTD,0
South Ribble Borough Council,http://statistics.data.gov.uk/id/local-authority/30UE,Surplus or Deficit on Trading,Premises Repair & Mtne,2020,"Building works folowing damp/water leaks. Works required main gallery. as per NAME REDACTED request , Remove existing wall to fire place ",07/06/2023,0000489558,"3,099.00",Revenue,PDP PROPERTY SERVICES LTD,0
South Ribble Borough Council,http://statistics.data.gov.uk/id/local-authority/30UE,Recreation & Sport,Premises Repair & Mtne,2020,"SITE:- PENWORTHAM HOLME RECREATION CENTRE, PRESTON, , Engineer will attend site and if they can access the locking rod at the bot",21/06/2023,0000489741,728.00,Revenue,PEERLESS FENCING LTD,0
South Ribble Borough Council,http://statistics.data.gov.uk/id/local-authority/30UE,Central Support Services,Services,4575,HR Event Catering,07/06/2023,0000489606,720.00,Revenue,Penningtons Bakery,0
South Ribble Borough Council,http://statistics.data.gov.uk/id/local-authority/30UE,Recycling,Printing- Stat & Office Expens,4127,Provision & Posting of Garden Waste May - December 2023 @ 0.97p per permit.,14/06/2023,0000489711,"1,792.56",Revenue,Permiserv Ltd,0
South Ribble Borough Council,http://statistics.data.gov.uk/id/local-authority/30UE,Central Support Services,Printing- Stat & Office Expens,413A,AutoCAD LT 2024 Commercial - New Single-user ELD - Annual Subscription - Licence,07/06/2023,0000488288,"1,322.60",Revenue,PHOENIX SOFTWARE LTD,0
South Ribble Borough Council,http://statistics.data.gov.uk/id/local-authority/30UE,Central Support Services,Furniture- Equip & Materials,4012,"2022 / 2023 annual contract for the provision of sanitary services to the Civic Centre as per your ref 105796	, , to include duty",07/06/2023,0000489599,"1,264.14",Revenue,PHS GROUP PLC,0
South Ribble Borough Council,http://statistics.data.gov.uk/id/local-authority/30UE,Economic Development,Printing- Stat & Office Expens,4120,"Music in the park Banners 2022, Batch of 15 x Heras mesh, over 3 designs, Batch of 12 x Crowd control barriers, over 2 designs, 1",14/06/2023,0000489283,"3,530.69",Revenue,Poppy Signs Ltd,0
South Ribble Borough Council,http://statistics.data.gov.uk/id/local-authority/30UE,Economic Development,Furniture- Equip & Materials,4010,Toilets provision for MITP.,14/06/2023,0000489328,"6,180.00",Revenue,Portable Toilet Company Ltd,0
South Ribble Borough Council,http://statistics.data.gov.uk/id/local-authority/30UE,Homelessness,Grants & Subscriptions,4730,"Invoice from Preston City Council for the Accommodation for Ex-Offenders (AfEO) service - amount due is 10,000.00Invoice number ",28/06/2023,0000490152,"10,000.00",Revenue,Preston City Council,0
South Ribble Borough Council,http://statistics.data.gov.uk/id/local-authority/30UE,Recreation & Sport,Premises Repair & Mtne,2021,Additional Access Tower Works at Leyland Leisure centre as per NAME REDACTED request,21/06/2023,0000489860,875.00,Revenue,Preston Scaffolding NW Ltd.,0
South Ribble Borough Council,http://statistics.data.gov.uk/id/local-authority/30UE,Recreation & Sport,Premises Repair & Mtne,2021,Additional Access Tower Works at Bamber Bridge Leisure centre,21/06/2023,0000489861,"1,575.00",Revenue,Preston Scaffolding NW Ltd.,0
South Ribble Borough Council,http://statistics.data.gov.uk/id/local-authority/30UE,Recreation & Sport,Premises Repair & Mtne,2020,"Request raised by NAME REDACTED - To supply, erect and subsequently dismantle the independent access scaffold to access the high level ",21/06/2023,0000489862,"1,500.00",Revenue,Preston Scaffolding NW Ltd.,0
South Ribble Borough Council,http://statistics.data.gov.uk/id/local-authority/30UE,Open Spaces,Expenses,4657,Sandworks spares as per Quotation ref. 2304.38043.,14/06/2023,0000489496,604.38,Revenue,PROLUDIC LTD,0
South Ribble Borough Council,http://statistics.data.gov.uk/id/local-authority/30UE,Economic Development,Miscellaneous Expenses,485K,"businessinsouthribble.com, Web & email hosting for the current year (starting on 1st April 2023) = 720 + VAT, SSL certificate re",14/06/2023,0000487793,779.99,Revenue,PROTEAN SYSTEMS LIMITED,0
South Ribble Borough Council,http://statistics.data.gov.uk/id/local-authority/30UE,Surplus or Deficit on Trading,Premises Repair & Mtne,2020,"Remedial works to stairs and landing at 63 Pope Lane., ITEM 1 � PAINT WORK, , �	To scrape off any loose paint work to steps and l",28/06/2023,0000488399,"3,000.00",Revenue,PSR & Sons Joiners & Building Contractors,0
South Ribble Borough Council,http://statistics.data.gov.uk/id/local-authority/30UE,Surplus or Deficit on Trading,Premises Repair & Mtne,2020,"To fit a fire door at ADDRESS REDACTED Requested by NAME REDACTED., Building works:, To carefully cut out Existing Brick and bl",21/06/2023,0000489672,"4,000.00",Revenue,PSR & Sons Joiners & Building Contractors,0
South Ribble Borough Council,http://statistics.data.gov.uk/id/local-authority/30UE,Surplus or Deficit on Trading,Premises Repair & Mtne,2020,Materials,21/06/2023,0000489949,"2,100.00",Revenue,PSR & Sons Joiners & Building Contractors,0
South Ribble Borough Council,http://statistics.data.gov.uk/id/local-authority/30UE,Surplus or Deficit on Trading,Premises Repair & Mtne,2020,materials,21/06/2023,0000489955,"1,100.00",Revenue,PSR & Sons Joiners & Building Contractors,0
South Ribble Borough Council,http://statistics.data.gov.uk/id/local-authority/30UE,Central Support Services,Services,4541,"H & S Consultancy support 18th February 2023 to 17th February 2024., 24hrs per month @ 45 per hour 12,960",28/06/2023,0000488957,"3,240.00",Revenue,QHS SOLUTIONS,0
South Ribble Borough Council,http://statistics.data.gov.uk/id/local-authority/30UE,Surplus or Deficit on Trading,Premises Repair & Mtne,2020,"Quotation to replace damaged foundation blockwork. Much Hoole Pavilion, Park Ave, Much Hoole, PR4 4QL, The existing blockwork is ",21/06/2023,0000489864,900.00,Revenue,RED ROSE BUILDING MAINTENANCE,0
South Ribble Borough Council,http://statistics.data.gov.uk/id/local-authority/30UE,Central Support Services,Services,4541,Level 2 Retrofit Training � for NAMES REDACTED 347.50+VAT per person,07/06/2023,0000489247,"1,042.50",Revenue,Retrofit Academy CIC,0
South Ribble Borough Council,http://statistics.data.gov.uk/id/local-authority/30UE,Central Support Services,Communications & Comuting,4241,SRBC old printers CLICK CHARGES,21/06/2023,0000489886,"5,301.81",Revenue,RICOH (UK) LTD,0
South Ribble Borough Council,http://statistics.data.gov.uk/id/local-authority/30UE,Economic Development,Services,4510,"Road Closure and Traffic Management for Music in the Park event 28 May 2023, , , SSFSP02 -Special 1050x750 Reco c/w Frame -EG, Zi",14/06/2023,0000489671,"1,332.00",Revenue,Road Safety Services LTD,0
South Ribble Borough Council,http://statistics.data.gov.uk/id/local-authority/30UE,Open Spaces,Services,4570,Fell 4 x Poplar and one Ash with ADB symptoms. Crown raise up to 5m remaining trees on frontage to include lateral reduction to s,14/06/2023,0000489609,"4,170.00",Revenue,RUSS ASPINALL T/A BEARDWOOD TREE SERVICE,0
South Ribble Borough Council,http://statistics.data.gov.uk/id/local-authority/30UE,Capital,Deferrd Chgs-Improvemnt Grants,C570,DISREPAIR GRANT FOR ROOFING WORK AT ADDRESS REDACTED- 50% COST TO BE PAID BY CUSTOMER BASE DON QUOTE RECEIVED OF 7,07/06/2023,0000489290,"3,800.00",Revenue,S N ROOFING,0
South Ribble Borough Council,http://statistics.data.gov.uk/id/local-authority/30UE,Economic Development,Miscellaneous Expenses,4851,Grant for acts for Battle of Bamber Bridge 2023,28/06/2023,0000490109,"2,850.00",Revenue,Sarah Locke - Ye Olde Hob Inn,0
South Ribble Borough Council,http://statistics.data.gov.uk/id/local-authority/30UE,Central Support Services,Salaries,1121,Payment for Locum Solicitor NAME REDACTED,28/06/2023,0000489396,"2,686.00",Revenue,SELLICK PARTNERSHIP LTD,0
South Ribble Borough Council,http://statistics.data.gov.uk/id/local-authority/30UE,Central Support Services,Miscellaneous Expenses,4821,Locum Solicitor NAME REDACTED fees,07/06/2023,0000489596,"2,148.80",Revenue,SELLICK PARTNERSHIP LTD,0
South Ribble Borough Council,http://statistics.data.gov.uk/id/local-authority/30UE,Central Support Services,Miscellaneous Expenses,4821,Locum Solicitor NAME REDACTED fees,14/06/2023,0000489831,"2,686.00",Revenue,SELLICK PARTNERSHIP LTD,0
South Ribble Borough Council,http://statistics.data.gov.uk/id/local-authority/30UE,Central Support Services,Salaries,1121,Payment for Locum Solicitor NAME REDACTED,28/06/2023,0000490100,"2,686.00",Revenue,SELLICK PARTNERSHIP LTD,0
South Ribble Borough Council,http://statistics.data.gov.uk/id/local-authority/30UE,Central Support Services,Salaries,1121,Payment for Locum Solicitor NAME REDACTED,28/06/2023,0000490185,"2,686.00",Revenue,SELLICK PARTNERSHIP LTD,0
South Ribble Borough Council,http://statistics.data.gov.uk/id/local-authority/30UE,Economic Development,Miscellaneous Expenses,485I,"Business Recruitment Social media campaign, , 1.	Sourcing potential exhibitors and managing the exhibitor registration process., ",28/06/2023,0000490038,"4,995.00",Revenue,SHOUT Network Ltd,0
South Ribble Borough Council,http://statistics.data.gov.uk/id/local-authority/30UE,Central Support Services,Training Expenses,1420,"DCPC - Onsite Module Course Fee (up to 20). , DCPC Regulatory compliance & Highway code and Driver health & wellbeing",21/06/2023,0000489907,654.50,Revenue,SPECIALIST TRAINING & CONSULTANCY SERVICES LTD,0
South Ribble Borough Council,http://statistics.data.gov.uk/id/local-authority/30UE,Central Support Services,Training Expenses,1420,DCPC Onsite Training Bridge Strikes & Mental Health - 10 candidates 8.6.23.,21/06/2023,0000489912,595.00,Revenue,SPECIALIST TRAINING & CONSULTANCY SERVICES LTD,0
South Ribble Borough Council,http://statistics.data.gov.uk/id/local-authority/30UE,Democratic Represent and  Mgnt,Services,4575,"Vegetable Soup served with Bloomer Bread & Butter , X 80 , 5.50 per person , , Hot Buffet, , 35 x Ribble Valley Steak & Ale Pie,",28/06/2023,0000489913,"1,396.67",Revenue,St Catherines Social Enterprise Ltd,0
South Ribble Borough Council,http://statistics.data.gov.uk/id/local-authority/30UE,Service Management & Support,Direct Transport Costs,3134,2500l Gas Oil @ 65.30ppl,07/06/2023,0000489564,"1,662.50",Revenue,Standard Fuel Oils LtdMain,0
South Ribble Borough Council,http://statistics.data.gov.uk/id/local-authority/30UE,Service Management & Support,Direct Transport Costs,3132,"17000 Ltrs Diesel @ 107.97ppl into the feeder tank at Unit 81, Bison Place, Moss Side. Key for cabinet is available from the main",21/06/2023,0000489748,"18,277.92",Revenue,Standard Fuel Oils LtdMain,0
South Ribble Borough Council,http://statistics.data.gov.uk/id/local-authority/30UE,Recreation & Sport,Services,4510,"Costs for filming 550 per day, x1 day - Dance Competition, Editing is 400 per day, x2 days + 800, Location at Worden, 14th Mar",07/06/2023,0000489458,"1,350.00",Revenue,STANLEY ROAD FILM AND MEDIA LTD,0
South Ribble Borough Council,http://statistics.data.gov.uk/id/local-authority/30UE,Capital,Deferrd Chgs-Improvemnt Grants,C570,"DFG WORK TO SUPPLY AND INSTALL A STAIRLIFT AT ADDRESS REDACTED AS PER QUOTE SUPPLIED OF 3483.00, TOTAL COST 3483.",21/06/2023,0000488847,"3,590.00",Revenue,Stannah Lift Services Ltd,0
South Ribble Borough Council,http://statistics.data.gov.uk/id/local-authority/30UE,Capital,Deferrd Chgs-Improvemnt Grants,C570,"DFG WORK TO SUPPLY AND INSTALL A STAIRLIFT AT ADDRESS REDACTEDAS PER QUOTE SUPPLIED OF 5464.00, TOTAL COST 546",07/06/2023,0000489291,"5,286.00",Revenue,Stannah Lift Services Ltd,0
South Ribble Borough Council,http://statistics.data.gov.uk/id/local-authority/30UE,Capital,Deferrd Chgs-Improvemnt Grants,C570,"DFG WORK TO SUPPLY AND INSTALL A STAIRLIFT AT ADDRESS REDACTED AS PER QUOTE SUPPLIED OF 13850.19, TOTAL COST ",07/06/2023,0000489292,"14,416.51",Revenue,Stannah Lift Services Ltd,0
South Ribble Borough Council,http://statistics.data.gov.uk/id/local-authority/30UE,Capital,Deferrd Chgs-Improvemnt Grants,C570,DFG WORK TO SUPPLY AND INSTALL A STAIRLIFT AT ADDRESS REDACTED AS PER QUOTE SUPPLIED OF 5426.00TOTAL COST 5426.00,28/06/2023,0000490177,"5,426.00",Revenue,Stannah Lift Services Ltd,0
South Ribble Borough Council,http://statistics.data.gov.uk/id/local-authority/30UE,Capital,Capital Other Land & Bldgs,C230,"Worden Park Ice House , Uplift to original Restoration , and repairs works as per our quotation reference 1779",21/06/2023,0000489951,"1,160.50",Revenue,Stone Technical Services Group Ltd,0
South Ribble Borough Council,http://statistics.data.gov.uk/id/local-authority/30UE,Capital,Capital Other Land & Bldgs,C230,"Worden Park Ice House , To carry out repairs, to Rear Vaulted Passage Strapping , works as per our quotation reference 17794",21/06/2023,0000489952,"2,979.30",Revenue,Stone Technical Services Group Ltd,0
South Ribble Borough Council,http://statistics.data.gov.uk/id/local-authority/30UE,Capital,Capital Other Land & Bldgs,C230,Undertake works to Ice house Worden park as per BOQ and engineers Drawings,21/06/2023,0000489954,"14,275.75",Revenue,Stone Technical Services Group Ltd,0
South Ribble Borough Council,http://statistics.data.gov.uk/id/local-authority/30UE,Capital,Capital Other Land & Bldgs,C230,Repair works to Worden Old Hall Wall,21/06/2023,0000489957,"21,428.83",Revenue,Stone Technical Services Group Ltd,0
South Ribble Borough Council,http://statistics.data.gov.uk/id/local-authority/30UE,Surplus or Deficit on Trading,Services,4541,Project: South Ribble Museum Quantity Surveying Services � Estimated Costs of Fabric Repairs As instructed by NAME REDACTED,28/06/2023,0000490090,750.00,Revenue,T Sumner Smith and Partners Ltd,0
South Ribble Borough Council,http://statistics.data.gov.uk/id/local-authority/30UE,Central Support Services,Furniture- Equip & Materials,4040,"Diagnostic box 210005 , VIN REDACTED",14/06/2023,0000489472,"1,602.76",Revenue,TERBERG MATEC UK LTD,0
South Ribble Borough Council,http://statistics.data.gov.uk/id/local-authority/30UE,Central Support Services,Communications & Comuting,4243,Public Administration Licence Professional Employees 01/06/2023 12months 25.78 x 22 567.16,14/06/2023,0000489818,567.16,Revenue,The Copyright Licensing Agency Ltd,0
South Ribble Borough Council,http://statistics.data.gov.uk/id/local-authority/30UE,Community Development,Miscellaneous Expenses,4861,Management of Volunteers and artists for Penwortham Live `23,14/06/2023,0000489694,"1,500.00",Revenue,The Creative Network,0
South Ribble Borough Council,http://statistics.data.gov.uk/id/local-authority/30UE,Community Development,Miscellaneous Expenses,4851,hire of PA Systems for Penwortham Live,28/06/2023,0000490111,"3,100.00",Revenue,The Creative Network,0
South Ribble Borough Council,http://statistics.data.gov.uk/id/local-authority/30UE,Capital,Capital Other Land & Bldgs,C230,Gregson Lane New Community Centre - Grant 2,21/06/2023,0000489663,"150,000.00",Revenue,THE GREGSON GREEN STEERING GROUP,0
South Ribble Borough Council,http://statistics.data.gov.uk/id/local-authority/30UE,Central Support Services,Furniture- Equip & Materials,4040,TR250,14/06/2023,0000489559,586.55,Revenue,Tomlinson Road Tyres,0
South Ribble Borough Council,http://statistics.data.gov.uk/id/local-authority/30UE,Tourism,Energy Costs,2303,1/5 to 31/5/23,14/06/2023,0000489791,"2,039.34",Revenue,Total Gas & Power (Elec) 3006014935 - Worden Hall,0
South Ribble Borough Council,http://statistics.data.gov.uk/id/local-authority/30UE,Central Support Services,Energy Costs,2303,1/5 to 31/5/23,14/06/2023,0000489597,"2,348.05",Revenue,Total Gas & Power (Elec) 3006014946 - Civic Centre,0
South Ribble Borough Council,http://statistics.data.gov.uk/id/local-authority/30UE,Central Support Services,Energy Costs,2303,1/5 to 31/5/23,14/06/2023,0000489598,"2,539.83",Revenue,Total Gas & Power (Elec) 3006014957 - Moss Side De,0
South Ribble Borough Council,http://statistics.data.gov.uk/id/local-authority/30UE,Central Support Services,Energy Costs,2303,1/5 to 31/5/23,28/06/2023,0000490052,650.15,Revenue,Total Gas & Power (Elec) 3006031666 - Gregson Lane,0
South Ribble Borough Council,http://statistics.data.gov.uk/id/local-authority/30UE,Culture & Heritage,Energy Costs,2304,31/1 to 2/6/23,14/06/2023,0000489688,"1,347.82",Revenue,Total Gas & Power (Gas) 3006046208 - SR Museum,0
South Ribble Borough Council,http://statistics.data.gov.uk/id/local-authority/30UE,Central Support Services,Energy Costs,2304,"3006046241, 30 Apr 23 - 31 May 23",28/06/2023,0000490128,563.90,Revenue,Total Gas & Power (Gas) 3006046241 - Civic Centre,0
South Ribble Borough Council,http://statistics.data.gov.uk/id/local-authority/30UE,Housing Advice,Grants & Subscriptions,4730,"AFFORDABLE WARMTH FUNDING FOR DOOR AND WINDOW REPLACEMENT AT ADDRESS REDACTED, AS PER QUOTE SUPPLED OF 4814.80( INC",28/06/2023,0000490043,"4,012.33",Revenue,TRADE WINDOWS & CONSERVATORIES,0
South Ribble Borough Council,http://statistics.data.gov.uk/id/local-authority/30UE,Central Support Services,Contract Hire & Operating Leas,3212,"Hire of RCV PN67 HFX , On Hire 27.4.23, Off hire 26.5.23",14/06/2023,0000489608,"3,850.00",Revenue,Trest Limited,0
South Ribble Borough Council,http://statistics.data.gov.uk/id/local-authority/30UE,Economic Development,Services,4510,MITP Set up and take down security,14/06/2023,0000489648,"4,680.00",Revenue,UK Media & Events Security Limited,0
South Ribble Borough Council,http://statistics.data.gov.uk/id/local-authority/30UE,Economic Development,Services,4510,Security for MITP,14/06/2023,0000489650,"8,671.00",Revenue,UK Media & Events Security Limited,0
South Ribble Borough Council,http://statistics.data.gov.uk/id/local-authority/30UE,Economic Development,Services,4510,"Music In The Park Radio Advertising Package, Rock FM and Greatest Hits Radio",28/06/2023,0000488364,"4,500.00",Revenue,UK Media Events Ltd,0
South Ribble Borough Council,http://statistics.data.gov.uk/id/local-authority/30UE,Economic Development,Furniture- Equip & Materials,4010,"SRBC - Music In The Park 2023 - Production, , Our Reference SQ8565",07/06/2023,0000489503,"21,900.00",Revenue,UK Media Events Ltd,0
South Ribble Borough Council,http://statistics.data.gov.uk/id/local-authority/30UE,Economic Development,Miscellaneous Expenses,4841,Monthly management fee for social media and email campaigns for website November to May,07/06/2023,0000489504,950.00,Revenue,UK Media Events Ltd,0
South Ribble Borough Council,http://statistics.data.gov.uk/id/local-authority/30UE,Economic Development,Miscellaneous Expenses,4848,Discover South Ribble support,07/06/2023,0000489401,"3,153.33",Revenue,VIVA PR Limited,0
South Ribble Borough Council,http://statistics.data.gov.uk/id/local-authority/30UE,Economic Development,Miscellaneous Expenses,4848,Discover South Ribble support,07/06/2023,0000489570,"3,153.33",Revenue,VIVA PR Limited,0
South Ribble Borough Council,http://statistics.data.gov.uk/id/local-authority/30UE,Central Support Services,Salaries,1121,Invoice No 106608 - Fees for NAME REDACTED,21/06/2023,0000487890,"3,200.00",Revenue,Vivid Resourcing,0
South Ribble Borough Council,http://statistics.data.gov.uk/id/local-authority/30UE,Central Support Services,Salaries,1121,Consultant planning officer NAME REDACTED,28/06/2023,0000488787,"1,693.13",Revenue,Vivid Resourcing,0
South Ribble Borough Council,http://statistics.data.gov.uk/id/local-authority/30UE,Central Support Services,Salaries,1121,Consultant planning officer NAME REDACTED,28/06/2023,0000489017,"1,780.80",Revenue,Vivid Resourcing,0
South Ribble Borough Council,http://statistics.data.gov.uk/id/local-authority/30UE,Central Support Services,Salaries,1121,Consultant planning officer NAME REDACTED,28/06/2023,0000489712,"1,680.00",Revenue,Vivid Resourcing,0
South Ribble Borough Council,http://statistics.data.gov.uk/id/local-authority/30UE,Central Support Services,Salaries,1121,Consultant planning officer NAME REDACTED,28/06/2023,0000489943,"1,995.00",Revenue,Vivid Resourcing,0
South Ribble Borough Council,http://statistics.data.gov.uk/id/local-authority/30UE,Central Support Services,Salaries,1121,Consultant planning officer NAME REDACTED,28/06/2023,0000490116,"1,942.50",Revenue,Vivid Resourcing,0
South Ribble Borough Council,http://statistics.data.gov.uk/id/local-authority/30UE,Central Support Services,Communications & Comuting,4212,01 Jun 2023,21/06/2023,0000489844,"2,404.20",Revenue,VODAFONE RE:CABLE & WIRELESS UK,0
South Ribble Borough Council,http://statistics.data.gov.uk/id/local-authority/30UE,Open Spaces,Expenses,4657,Time associated with Hurst Grange Park Coach House Project,07/06/2023,0000488104,693.75,Revenue,WALMSLEY ASSOCIATES,0
South Ribble Borough Council,http://statistics.data.gov.uk/id/local-authority/30UE,Capital,Capital Other Land & Bldgs,C230,surface,14/06/2023,0000489726,642.16,Revenue,WATER PLUS,0
South Ribble Borough Council,http://statistics.data.gov.uk/id/local-authority/30UE,Capital,Capital Other Land & Bldgs,C230,surface,14/06/2023,0000489751,665.09,Revenue,WATER PLUS,0
South Ribble Borough Council,http://statistics.data.gov.uk/id/local-authority/30UE,Capital,Capital Other Land & Bldgs,C230,surface,28/06/2023,0000490058,"2,348.19",Revenue,WATER PLUS,0
South Ribble Borough Council,http://statistics.data.gov.uk/id/local-authority/30UE,Culture & Heritage,Water,2511,"404 171 2947, 01 Apr 23 - 31 Mar 24",14/06/2023,0000489215,"29,494.94",Revenue,WaterPlus 4041712947 Group Bill,0
South Ribble Borough Council,http://statistics.data.gov.uk/id/local-authority/30UE,Central Support Services,Water,2511,Unit 81 Byson Place,14/06/2023,0000489752,"2,809.74",Revenue,WaterPlus 4080412513 Unit 81 Bison Place,0
South Ribble Borough Council,http://statistics.data.gov.uk/id/local-authority/30UE,Central Support Services,Water,2511,surface,28/06/2023,0000490060,"2,141.44",Revenue,WaterPlus 4080412513 Unit 81 Bison Place,0
South Ribble Borough Council,http://statistics.data.gov.uk/id/local-authority/30UE,Central Support Services,Water,2511,15/3 to 31/3/23,28/06/2023,0000490063,"1,910.50",Revenue,WaterPlus 4080412513 Unit 81 Bison Place,0
South Ribble Borough Council,http://statistics.data.gov.uk/id/local-authority/30UE,Central Support Services,Water,2511,waste,28/06/2023,0000490063,"3,249.09",Revenue,WaterPlus 4080412513 Unit 81 Bison Place,0
South Ribble Borough Council,http://statistics.data.gov.uk/id/local-authority/30UE,Economic Development,Water,2511,25/4 to 24/5/23,14/06/2023,0000489764,697.64,Revenue,WaterPlus 4084744952 - Leyland Market,0
South Ribble Borough Council,http://statistics.data.gov.uk/id/local-authority/30UE,Open Spaces,Water,2511,Worden park utilities,14/06/2023,0000489809,"1,299.43",Revenue,WaterPlus 4191231371 Worden Park,0
South Ribble Borough Council,http://statistics.data.gov.uk/id/local-authority/30UE,Central Support Services,Communications & Comuting,4292,Ongoing post costs,21/06/2023,0000488270,"1,190.27",Revenue,WHISTL  UK LTD,0
South Ribble Borough Council,http://statistics.data.gov.uk/id/local-authority/30UE,Central Support Services,Communications & Comuting,4292,Ongoing post costs,21/06/2023,0000488450,514.03,Revenue,WHISTL  UK LTD,0
South Ribble Borough Council,http://statistics.data.gov.uk/id/local-authority/30UE,Central Support Services,Communications & Comuting,4243,"4017 Whitespace Analytics Server Support Period of cover: 01/07/2023 - 30/06/24 1,875.00, 4017 Whitespace Analytics User Support",07/06/2023,0000489537,"24,917.09",Revenue,Whitespace Work Software Ltd,0
